bitfinex/quotes_SOLUSD_20220116
["timestamp","ask_amount","ask_price","bid_price","bid_amount"]
[1642373416206,12.0984684,147.63,147.54,1.4261464]
[1642373416408,12.0984684,147.63,147.54,1.6761464]
[1642373416607,12.0984684,147.63,147.54,1.4261464]
[1642373417308,10.1667,147.63,147.54,1.4261464]
[1642373419227,10.1667,147.63,147.54,1.6761464]
[1642373419414,10.1667,147.63,147.54,1.4261464]
[1642373419813,10.1667,147.63,147.54,1.6761464]
[1642373420644,78.3167,147.63,147.54,1.4261464]
[1642373423542,10.1667,147.63,147.54,1.4261464]
[1642373423744,10.1667,147.63,147.54,0.9261464]
[1642373425548,20.4969,147.63,147.54,0.9261464]
[1642373429051,20.4969,147.63,147.54,0.4261464]
[1642373429352,20.4969,147.63,147.53,30.0369464]
[1642373429553,10.1667,147.63,147.53,30.0369464]
[1642373433052,12.0984684,147.63,147.53,30.0369464]
[1642373440558,7.06685772,147.62,147.53,30.0369464]
[1642373441459,8.99862612,147.62,147.53,30.0369464]
[1642373441658,1.9317684,147.62,147.53,31.1837402]
[1642373442261,1.9317684,147.63,147.53,31.1837402]
[1642373442962,1.9317684,147.63,147.54,9.78]
[1642373443260,1.9317684,147.63,147.55,24.6874]
[1642373443465,1.9317684,147.63,147.55,1.3967938]
[1642373444460,1.9317684,147.64,147.55,1.3967938]
[1642373444960,12.0972684,147.65,147.55,1.3967938]
[1642373446363,1.9317684,147.64,147.55,1.3967938]
[1642373447961,12.0972684,147.65,147.55,1.3967938]
[1642373448865,12.0972684,147.65,147.55,7.3967938]
[1642373449665,1.9317684,147.65,147.55,7.3967938]
[1642373450067,1.9317684,147.65,147.55,6.25]
[1642373450468,1.9317684,147.65,147.55,0.25]
[1642373450664,1.9317684,147.65,147.54,16.03]
[1642373450865,1.9317684,147.64,147.54,16.03]
[1642373452769,1.9317684,147.64,147.54,10.03]
[1642373453168,1.9317684,147.64,147.54,9.78]
[1642373453369,12.0971684,147.65,147.54,9.78]
[1642373453569,8.99826927,147.65,147.54,9.78]
[1642373454405,8.99826927,147.65,147.55,23.3209]
[1642373454808,8.99826927,147.65,147.55,23.5709]
[1642373455009,1.9317684,147.63,147.55,23.3209]
[1642373455208,12.0986684,147.63,147.55,23.3209]
[1642373455407,12.0986684,147.63,147.55,23.5709]
[1642373459815,12.0986684,147.63,147.55,23.3209]
[1642373460316,12.0986684,147.63,147.55,23.5709]
[1642373461220,12.0986684,147.63,147.55,23.3209]
[1642373463419,1.9317684,147.62,147.55,23.3209]
[1642373466456,3.24350924,147.62,147.55,23.3209]
[1642373469359,3.24350924,147.62,147.55,23.5709]
[1642373471563,3.24350924,147.62,147.55,23.3209]
[1642373471960,3.24350924,147.62,147.55,23.5709]
[1642373472563,3.24350924,147.62,147.55,23.3209]
[1642373475666,3.24350924,147.62,147.55,23.5709]
[1642373479772,13.41090924,147.62,147.55,23.3209]
[1642373479972,13.41090924,147.62,147.52,9.78]
[1642373480375,81.56090924,147.62,147.52,9.78]
[1642373480974,10.1698,147.59,147.52,9.78]
[1642373481376,1.9317684,147.6,147.52,9.78]
[1642373482176,1.9317684,147.59,147.52,9.78]
[1642373482576,1.9317684,147.59,147.52,10.03]
[1642373484680,12.1007684,147.6,147.52,9.78]
[1642373485179,12.1007684,147.6,147.52,10.03]
[1642373485584,12.1011684,147.59,147.52,10.03]
[1642373486279,10.1694,147.59,147.52,10.03]
[1642373487682,10.1694,147.59,147.52,9.78]
[1642373489492,10.1694,147.59,147.52,10.03]
[1642373490394,10.1694,147.59,147.52,9.78]
[1642373490596,10.1694,147.59,147.52,10.03]
[1642373490794,10.1694,147.59,147.52,9.78]
[1642373490993,10.1694,147.59,147.52,10.03]
[1642373491824,10.1694,147.59,147.52,9.78]
[1642373492023,10.1694,147.59,147.53,22.75]
[1642373492424,12.1011684,147.59,147.53,22.75]
[1642373492723,12.1011684,147.59,147.5,44.5942]
[1642373492927,12.1011684,147.59,147.5,44.8442]
[1642373493423,12.1011684,147.59,147.51,24.9217]
[1642373493824,12.1011684,147.59,147.51,25.1717]
[1642373502234,10.1694,147.59,147.51,25.1717]
[1642373503036,12.1011684,147.59,147.51,25.1717]
[1642373504136,12.1011684,147.59,147.52,6.71198271]
[1642373504336,12.1011684,147.59,147.52,6.96198271]
[1642373505642,12.1011684,147.59,147.53,24.5406]
[1642373505842,12.1011684,147.59,147.53,24.7906]
[1642373507244,12.1011684,147.59,147.54,6.71198271]
[1642373511452,12.1011684,147.59,147.54,6.96198271]
[1642373511647,1.9317684,147.58,147.54,6.71198271]
[1642373511848,1.9317684,147.58,147.54,6.96198271]
[1642373512148,1.9317684,147.58,147.54,6.71198271]
[1642373512348,12.1011684,147.59,147.54,6.71198271]
[1642373516056,12.1011684,147.59,147.51,6.71198271]
[1642373517256,1.9317684,147.57,147.51,6.71198271]
[1642373517457,1.9317684,147.57,147.51,6.96198271]
[1642373518058,1.9317684,147.58,147.51,6.96198271]
[1642373521265,12.1011684,147.59,147.51,6.96198271]
[1642373524472,1.9317684,147.58,147.51,6.96198271]
[1642373525172,1.9317684,147.58,147.51,6.71198271]
[1642373525369,1.9317684,147.58,147.51,6.96198271]
[1642373525594,1.9317684,147.58,147.51,0.25]
[1642373526394,1.9317684,147.58,147.49,6.71198271]
[1642373526395,1.9317684,147.58,147.49,6.96198271]
[1642373526896,1.9317684,147.58,147.5,22.656]
[1642373527301,1.9317684,147.58,147.5,22.906]
[1642373528498,1.9317684,147.58,147.51,6.71198271]
[1642373528898,1.9317684,147.58,147.51,6.96198271]
[1642373529699,1.9317684,147.58,147.52,24.0202]
[1642373531001,1.9317684,147.58,147.52,24.2702]
[1642373531602,1.9317684,147.58,147.53,6.71198271]
[1642373532003,1.9317684,147.58,147.53,6.96198271]
[1642373533704,1.9317684,147.58,147.53,6.71198271]
[1642373540619,1.9317684,147.57,147.53,6.71198271]
[1642373541317,1.9317684,147.57,147.49,6.71198271]
[1642373541518,1.9317684,147.58,147.49,6.71198271]
[1642373541716,1.9317684,147.58,147.49,6.96198271]
[1642373542319,1.9317684,147.57,147.49,6.96198271]
[1642373542719,1.9317684,147.57,147.5,22.641]
[1642373542917,1.9317684,147.57,147.5,22.891]
[1642373544441,1.9317684,147.57,147.51,6.71198271]
[1642373544847,1.9317684,147.57,147.51,6.96198271]
[1642373545345,1.9317684,147.58,147.51,6.96198271]
[1642373546548,1.9317684,147.58,147.52,23.8564]
[1642373546946,1.9317684,147.58,147.52,24.1064]
[1642373547547,1.9317684,147.57,147.53,6.71198271]
[1642373548247,1.9317684,147.58,147.53,6.71198271]
[1642373549749,1.9317684,147.57,147.53,6.71198271]
[1642373551255,1.9317684,147.58,147.53,6.71198271]
[1642373554654,1.9317684,147.57,147.53,6.71198271]
[1642373562468,1.9317684,147.57,147.48,1.89799571]
[1642373562768,1.9317684,147.57,147.49,6.71198271]
[1642373563268,1.9317684,147.57,147.5,22.521]
[1642373563469,1.9317684,147.57,147.5,22.771]
[1642373565771,1.9317684,147.57,147.51,6.71198271]
[1642373565971,1.9317684,147.57,147.51,6.96198271]
[1642373566175,1.9317684,147.57,147.51,6.71198271]
[1642373566371,1.9317684,147.57,147.51,6.96198271]
[1642373567771,1.9317684,147.58,147.51,6.96198271]
[1642373567972,1.9317684,147.58,147.52,23.866]
[1642373568477,1.9317684,147.58,147.52,24.116]
[1642373569075,1.9317684,147.58,147.53,6.71198271]
[1642373569375,1.9317684,147.58,147.53,6.96198271]
[1642373582519,1.9317684,147.58,147.53,6.71198271]
[1642373583320,1.9317684,147.57,147.53,6.71198271]
[1642373587025,1.9317684,147.57,147.49,9.78]
[1642373587224,1.9317684,147.57,147.5,6.71198271]
[1642373588427,1.9317684,147.57,147.5,6.96198271]
[1642373588630,1.9317684,147.56,147.5,6.96198271]
[1642373589131,1.9317684,147.57,147.5,6.96198271]
[1642373590832,1.9317684,147.57,147.51,23.1683]
[1642373591233,1.9317684,147.57,147.52,6.71198271]
[1642373591432,1.9317684,147.57,147.52,6.96198271]
[1642373592033,1.9317684,147.58,147.52,6.96198271]
[1642373593433,1.9317684,147.58,147.52,6.71198271]
[1642373594836,1.9317684,147.58,147.52,6.96198271]
[1642373595137,1.9317684,147.58,147.52,0.25]
[1642373595543,1.9317684,147.58,147.51,6.96198271]
[1642373595939,1.9317684,147.58,147.52,22.718]
[1642373596339,1.9317684,147.58,147.52,22.968]
[1642373596962,1.9317684,147.58,147.52,22.718]
[1642373598265,1.9317684,147.58,147.52,22.968]
[1642373598465,1.9317684,147.58,147.52,22.718]
[1642373598665,1.9317684,147.58,147.53,6.71198271]
[1642373599364,1.9317684,147.58,147.53,6.96198271]
[1642373599769,1.9317684,147.57,147.53,6.96198271]
[1642373605568,1.9317684,147.58,147.53,6.96198271]
[1642373609371,1.9317684,147.58,147.53,6.71198271]
[1642373610676,1.9317684,147.59,147.53,6.71198271]
[1642373610873,1.9317684,147.59,147.53,6.96198271]
[1642373611273,1.9317684,147.59,147.53,0.25]
[1642373611574,1.9317684,147.59,147.51,23.2604]
[1642373612273,1.9317684,147.58,147.51,23.2604]
[1642373613575,1.9317684,147.57,147.51,23.5104]
[1642373614578,1.9317684,147.57,147.52,6.71198271]
[1642373614976,1.9317684,147.57,147.52,6.96198271]
[1642373616376,1.9317684,147.58,147.52,6.96198271]
[1642373617077,1.9317684,147.58,147.52,6.71198271]
[1642373618377,1.9317684,147.58,147.52,6.96198271]
[1642373618777,1.9317684,147.57,147.52,6.96198271]
[1642373618980,1.9317684,147.57,147.52,6.71198271]
[1642373619978,1.9317684,147.57,147.52,6.96198271]
[1642373622088,1.9317684,147.57,147.52,6.71198271]
[1642373623686,1.9317684,147.57,147.52,6.96198271]
[1642373624284,1.9317684,147.58,147.52,6.96198271]
[1642373624585,1.9317684,147.58,147.53,23.2251]
[1642373624884,1.9317684,147.58,147.53,23.4751]
[1642373625684,7.07950722,147.57,147.53,23.4751]
[1642373625884,1.9317684,147.58,147.54,6.71198271]
[1642373627188,1.9317684,147.58,147.54,6.96198271]
[1642373627589,1.9317684,147.58,147.54,6.71198271]
[1642373628389,1.9317684,147.58,147.54,6.96198271]
[1642373629090,1.9317684,147.59,147.54,6.96198271]
[1642373629890,1.9317684,147.59,147.54,6.71198271]
[1642373630092,1.9317684,147.59,147.54,6.96198271]
[1642373631618,1.9317684,147.59,147.54,6.71198271]
[1642373631819,1.9317684,147.59,147.54,6.96198271]
[1642373632120,1.9317684,147.58,147.54,6.96198271]
[1642373633822,1.9317684,147.59,147.54,6.96198271]
[1642373634024,1.9317684,147.59,147.54,6.71198271]
[1642373634223,1.9317684,147.59,147.54,6.96198271]
[1642373634622,1.9317684,147.59,147.54,6.71198271]
[1642373635424,1.9317684,147.59,147.51,6.71198271]
[1642373635827,1.9317684,147.58,147.51,6.71198271]
[1642373636325,1.9317684,147.58,147.51,6.96198271]
[1642373638127,1.9317684,147.58,147.52,24.5723]
[1642373638427,1.9317684,147.58,147.52,24.8223]
[1642373639031,1.9317684,147.58,147.53,6.71198271]
[1642373639431,1.9317684,147.58,147.53,6.96198271]
[1642373642832,1.9317684,147.58,147.53,6.46198271]
[1642373643536,1.9317684,147.58,147.53,6.21198271]
[1642373644044,7.07966866,147.57,147.53,6.21198271]
[1642373644838,7.07966866,147.57,147.53,6.46198271]
[1642373645038,1.9317684,147.58,147.53,6.46198271]
[1642373648244,1.9317684,147.58,147.53,6.21198271]
[1642373649265,1.9317684,147.58,147.53,5.71198271]
[1642373650245,1.9317684,147.58,147.53,5.96198271]
[1642373652343,1.9317684,147.58,147.53,5.71198271]
[1642373652745,1.9317684,147.58,147.53,5.96198271]
[1642373655147,1.9317684,147.58,147.53,5.71198271]
[1642373656346,1.9317684,147.58,147.53,5.96198271]
[1642373657452,1.9317684,147.58,147.53,5.71198271]
[1642373658451,1.9317684,147.57,147.53,5.96198271]
[1642373659052,1.9317684,147.58,147.53,5.96198271]
[1642373663760,1.9317684,147.58,147.53,5.71198271]
[1642373664156,1.9317684,147.58,147.53,5.96198271]
[1642373665380,1.9317684,147.58,147.53,5.71198271]
[1642373666477,1.9317684,147.57,147.53,5.71198271]
[1642373670682,1.4317684,147.57,147.53,5.71198271]
[1642373671183,1.4317684,147.57,147.53,5.96198271]
[1642373671582,10.1679,147.6,147.53,5.96198271]
[1642373682300,13.97812017,147.62,147.53,5.96198271]
[1642373690841,13.97812017,147.62,147.53,5.71198271]
[1642373691744,9.37787691,147.61,147.52,5.71198271]
[1642373692042,10.1686,147.59,147.52,5.71198271]
[1642373692240,10.1686,147.59,147.52,5.96198271]
[1642373701356,10.1686,147.59,147.52,5.71198271]
[1642373702752,10.1686,147.59,147.52,5.96198271]
[1642373703354,10.1686,147.59,147.52,5.71198271]
[1642373704857,10.1686,147.59,147.52,5.96198271]
[1642373706755,10.1686,147.59,147.52,5.71198271]
[1642373707856,11.86937588,147.59,147.52,5.71198271]
[1642373713164,10.1686,147.59,147.52,5.71198271]
[1642373713365,10.1686,147.59,147.52,5.96198271]
[1642373713566,3.81132017,147.6,147.52,15.74198271]
[1642373713766,37.70762017,147.62,147.53,24.18]
[1642373713965,37.70762017,147.62,147.53,24.43]
[1642373714667,37.70762017,147.62,147.54,5.71198271]
[1642373714866,37.70762017,147.62,147.54,5.96198271]
[1642373715065,37.70762017,147.62,147.55,23.8237]
[1642373715466,10.1681,147.6,147.55,23.8237]
[1642373718470,10.1681,147.6,147.56,5.71198271]
[1642373721272,0.0001,147.6,147.57,33.0]
[1642373721472,0.0001,147.6,147.57,33.25]
[1642373721774,0.0001,147.6,147.58,5.71198271]
[1642373722976,0.0001,147.6,147.58,30.60598271]
[1642373726319,3.03219997,147.59,147.58,30.60598271]
[1642373726521,3.03219997,147.59,147.58,5.71198271]
[1642373730326,3.03229997,147.6,147.58,5.71198271]
[1642373730523,0.0001,147.6,147.58,5.71198271]
[1642373733329,0.0001,147.6,147.58,11.71198271]
[1642373735759,0.0001,147.6,147.58,5.71198271]
[1642373737160,0.0001,147.6,147.59,74.8534]
[1642373737359,0.0001,147.6,147.59,143.2534]
[1642373737561,0.0001,147.6,147.59,148.96538271]
[1642373738760,0.0001,147.6,147.59,158.74538271]
[1642373738962,3.81132017,147.7,147.6,79.0]
[1642373739163,3.81132017,147.7,147.62,10.1576]
[1642373739361,3.81132017,147.7,147.63,77.93]
[1642373739561,3.81132017,147.72,147.63,77.93]
[1642373739762,3.81132017,147.72,147.63,78.18]
[1642373740363,387.37591353,147.75,147.63,78.18]
[1642373740564,387.37591353,147.75,147.65,68.15]
[1642373740763,377.21831353,147.75,147.66,9.78]
[1642373740965,377.21831353,147.75,147.67,68.15]
[1642373741175,377.21831353,147.75,147.68,9.78]
[1642373741365,3.81132017,147.77,147.69,68.15]
[1642373741563,3.81132017,147.77,147.69,88.083]
[1642373741766,3.81132017,147.77,147.69,88.333]
[1642373742166,5.64694959,147.79,147.69,88.333]
[1642373742365,1.47815302,147.82,147.69,88.333]
[1642373742564,1.47815302,147.82,147.7,23.9955]
[1642373742764,1.47815302,147.82,147.71,77.93]
[1642373742965,1.47815302,147.82,147.72,23.0159]
[1642373743165,1.47815302,147.82,147.72,32.7959]
[1642373743366,1.47815302,147.82,147.72,33.0459]
[1642373743666,1.47815302,147.82,147.73,5.71198271]
[1642373743866,1.47815302,147.82,147.73,5.96198271]
[1642373744068,1.47815302,147.82,147.74,24.2926]
[1642373744369,1.47815302,147.82,147.74,24.5426]
[1642373745369,11.63105302,147.82,147.74,24.5426]
[1642373747773,11.63105302,147.82,147.75,5.71198271]
[1642373747974,11.63105302,147.82,147.75,5.96198271]
[1642373750175,1.47815302,147.82,147.75,5.96198271]
[1642373756318,1.47815302,147.82,147.75,5.71198271]
[1642373757815,1.47815302,147.82,147.75,5.96198271]
[1642373770630,7.67059669,147.81,147.75,5.96198271]
[1642373775337,3.81132017,147.8,147.75,5.96198271]
[1642373784846,3.31132017,147.8,147.75,5.96198271]
[1642373785151,1.47815302,147.82,147.75,5.96198271]
[1642373786047,3.86246908,147.81,147.75,5.96198271]
[1642373787955,3.86246908,147.81,147.75,5.71198271]
[1642373788374,3.86246908,147.81,147.74,5.71198271]
[1642373789473,3.86246908,147.81,147.74,74.11198271]
[1642373790577,1.47815302,147.82,147.74,74.11198271]
[1642373791378,1.93054813,147.79,147.75,23.591]
[1642373791776,1.93054813,147.79,147.76,5.71198271]
[1642373791977,0.00054813,147.79,147.76,5.96198271]
[1642373792178,13.3691421,147.86,147.76,30.68554529]
[1642373792583,13.3691421,147.86,147.77,1.11817066]
[1642373792777,13.3691421,147.86,147.78,9.78]
[1642373792978,13.3691421,147.86,147.79,190.44]
[1642373793179,5.64694959,147.9,147.8,9.78]
[1642373793377,5.64694959,147.9,147.81,24.6148]
[1642373793577,5.64694959,147.9,147.82,9.78]
[1642373793777,5.64694959,147.9,147.82,16.311]
[1642373793977,5.64694959,147.9,147.83,68.15]
[1642373794176,5.64694959,147.9,147.84,9.78]
[1642373794377,5.64694959,147.9,147.84,10.03]
[1642373794578,480.18571241,147.93,147.84,10.03]
[1642373794777,480.18571241,147.93,147.85,5.71198271]
[1642373794978,480.18571241,147.93,147.85,15.49198271]
[1642373795178,480.18571241,147.93,147.86,68.15]
[1642373795380,5.64694959,147.98,147.89,68.15]
[1642373795585,5.64694959,147.98,147.89,77.93]
[1642373795783,5.64694959,147.98,147.89,78.18]
[1642373796180,5.64694959,148.0,147.89,78.18]
[1642373796981,10.1403,148.01,147.89,78.18]
[1642373797783,1.19527745,148.02,147.9,5.71198271]
[1642373797981,1.19527745,148.02,147.9,54.04998271]
[1642373798184,1.19527745,148.02,147.9,122.44998271]
[1642373798786,11.33427745,148.02,147.9,122.44998271]
[1642373801694,11.33427745,148.02,147.9,122.19998271]
[1642373802888,11.33427745,148.02,147.9,122.44998271]
[1642373803089,11.33427745,148.02,147.9,132.22998271]
[1642373807294,11.33427745,148.02,147.9,64.07998271]
[1642373807501,11.33427745,148.02,147.9,63.82998271]
[1642373808797,11.33427745,148.02,147.9,64.07998271]
[1642373809999,11.33427745,148.02,147.9,15.74198271]
[1642373811301,68.15,148.01,147.9,15.49198271]
[1642373811499,10.1423,147.98,147.9,15.49198271]
[1642373811699,78.2923,147.98,147.9,5.71198271]
[1642373811900,10.1423,147.98,147.9,5.71198271]
[1642373812099,10.1423,147.98,147.85,5.71198271]
[1642373812901,10.1423,147.98,147.85,5.96198271]
[1642373813905,7.06310463,147.97,147.85,5.96198271]
[1642373814103,10.1448,147.94,147.85,5.96198271]
[1642373819144,10.1448,147.94,147.85,74.11198271]
[1642373819344,10.1434,147.96,147.85,74.11198271]
[1642373821045,10.1434,147.96,147.86,23.554]
[1642373821446,10.1434,147.96,147.86,23.804]
[1642373821847,3.84262782,147.95,147.86,23.804]
[1642373822047,3.84262782,147.95,147.87,5.71198271]
[1642373822246,13.98672782,147.95,147.87,5.71198271]
[1642373822447,13.98672782,147.95,147.87,5.96198271]
[1642373822846,13.98672782,147.95,147.87,5.71198271]
[1642373823449,10.1441,147.95,147.87,5.71198271]
[1642373823848,0.0001,147.95,147.87,73.86198271]
[1642373824048,3.84399256,147.94,147.87,5.71198271]
[1642373824250,3.84399256,147.94,147.88,9.78]
[1642373824448,3.84399256,147.94,147.88,10.03]
[1642373824852,3.84399256,147.94,147.89,5.71198271]
[1642373825049,0.0001,147.95,147.89,5.71198271]
[1642373825249,0.0001,147.95,147.89,29.54378271]
[1642373831254,0.0001,147.95,147.89,29.29378271]
[1642373831457,0.0001,147.95,147.89,29.54378271]
[1642373832357,0.0001,147.95,147.89,5.96198271]
[1642373832755,0.0001,147.95,147.89,5.71198271]
[1642373841299,3.84578849,147.95,147.89,5.71198271]
[1642373848005,3.84578849,147.95,147.89,5.96198271]
[1642373850912,3.84578849,147.95,147.89,5.71198271]
[1642373851316,3.84578849,147.95,147.87,5.71198271]
[1642373852040,13.98958849,147.95,147.87,5.71198271]
[1642373852939,3.84568849,147.94,147.87,5.71198271]
[1642373853141,13.99068849,147.94,147.87,5.71198271]
[1642373854741,13.99068849,147.94,147.86,5.71198271]
[1642373855343,3.84568849,147.93,147.86,5.71198271]
[1642373855541,13.99118849,147.93,147.86,5.71198271]
[1642373856541,10.1455,147.93,147.86,5.71198271]
[1642373858145,10.1455,147.93,147.85,5.71198271]
[1642373858344,9.6455,147.93,147.85,5.71198271]
[1642373858644,3.85525668,147.92,147.85,5.71198271]
[1642373859048,10.1465,147.91,147.85,5.71198271]
[1642373861450,10.1465,147.91,147.84,5.71198271]
[1642373873460,11.84727588,147.91,147.84,5.71198271]
[1642373875063,3.84956654,147.9,147.84,5.71198271]
[1642373875263,10.1489,147.89,147.84,5.71198271]
[1642373876564,17.21508871,147.89,147.84,5.71198271]
[1642373876763,17.21508871,147.89,147.8,30.69438271]
[1642373880404,10.1489,147.89,147.8,30.94438271]
[1642373883106,15.07339822,147.91,147.8,30.94438271]
[1642373883705,11.22377381,147.91,147.8,30.94438271]
[1642373884607,15.07339822,147.91,147.8,30.94438271]
[1642373887512,15.07339822,147.91,147.81,9.78]
[1642373887911,11.22377381,147.91,147.81,10.03]
[1642373888112,11.22377381,147.91,147.82,5.71198271]
[1642373888312,1.07717381,147.91,147.82,5.96198271]
[1642373888712,1.07717381,147.91,147.83,9.78]
[1642373888912,1.07717381,147.91,147.83,10.03]
[1642373889115,1.07717381,147.91,147.84,24.4399]
[1642373889513,1.07717381,147.91,147.84,24.6899]
[1642373891416,1.07717381,147.91,147.85,5.71198271]
[1642373905954,11.22387381,147.91,147.85,5.71198271]
[1642373907658,1.07717381,147.91,147.85,5.71198271]
[1642373907858,13.99512441,147.93,147.85,5.71198271]
[1642373908960,10.1455,147.93,147.84,5.71198271]
[1642373909359,10.1455,147.93,147.85,23.5653]
[1642373909762,3.84962441,147.94,147.85,23.5653]
[1642373909960,3.84962441,147.94,147.85,23.8153]
[1642373910161,3.84962441,147.94,147.85,91.9653]
[1642373911560,10.1441,147.95,147.85,23.8153]
[1642373911561,13.99372441,147.95,147.85,23.8153]
[1642373912363,1.92737631,147.92,147.86,5.71198271]
[1642373912763,1.92737631,147.92,147.86,5.96198271]
[1642373913164,1.92737631,147.92,147.86,15.74198271]
[1642373915270,1.92737631,147.93,147.86,15.74198271]
[1642373915469,1.92737631,147.93,147.87,23.025]
[1642373915766,1.92737631,147.93,147.87,32.805]
[1642373916067,1.92737631,147.93,147.87,33.055]
[1642373916367,1.92737631,147.93,147.88,5.71198271]
[1642373916767,1.92737631,147.93,147.88,5.96198271]
[1642373917270,1.92737631,147.94,147.88,5.96198271]
[1642373921475,1.92737631,147.94,147.88,5.71198271]
[1642373924076,1.92737631,147.94,147.88,5.96198271]
[1642373924276,1.92737631,147.93,147.88,5.96198271]
[1642373925278,1.92747631,147.95,147.88,5.96198271]
[1642373925482,1.92747631,147.95,147.89,24.2337]
[1642373925880,1.92747631,147.95,147.89,24.4837]
[1642373926479,1.92747631,147.95,147.9,5.71198271]
[1642373926681,0.0001,147.95,147.9,5.71198271]
[1642373926881,0.0001,147.95,147.9,5.96198271]
[1642373930785,0.0001,147.95,147.91,24.8532]
[1642373931181,0.0001,147.95,147.92,5.71198271]
[1642373931382,6.06439994,147.94,147.92,5.71198271]
[1642373931881,6.06439994,147.94,147.92,5.96198271]
[1642373932683,6.06439994,147.94,147.92,5.71198271]
[1642373932882,3.03219997,147.94,147.92,5.96198271]
[1642373933084,0.0001,147.95,147.92,5.96198271]
[1642373933291,0.0001,147.95,147.93,22.5407]
[1642373934185,0.0001,147.95,147.94,3.03]
[1642373934383,3.03229997,147.95,147.94,5.71198271]
[1642373938086,3.03229997,147.95,147.91,5.71198271]
[1642373946526,3.03229997,147.95,147.89,9.78]
[1642373946727,3.03229997,147.95,147.9,5.71198271]
[1642373947027,4.95967628,147.95,147.9,5.71198271]
[1642373950728,4.95967628,147.95,147.9,5.96198271]
[1642373952530,4.95967628,147.95,147.9,5.71198271]
[1642373954634,1.92737631,147.94,147.9,5.71198271]
[1642373955031,1.42737631,147.94,147.9,5.71198271]
[1642373958436,1.42737631,147.94,147.9,5.96198271]
[1642373959037,0.0001,147.95,147.9,5.96198271]
[1642373959938,0.0001,147.95,147.91,24.4127]
[1642373960438,0.0001,147.95,147.92,5.71198271]
[1642373961739,3.03219997,147.94,147.92,5.71198271]
[1642373964369,3.03219997,147.94,147.92,11.71198271]
[1642373964746,0.0001,147.95,147.92,11.71198271]
[1642373964948,0.0001,147.95,147.93,3.03]
[1642373965346,0.0001,147.95,147.94,30.71198271]
[1642373965747,3.03229997,147.95,147.94,30.71198271]
[1642373968453,0.0001,147.95,147.94,33.74198271]
[1642373972686,0.0001,147.95,147.94,8.74198271]
[1642373973085,3.03229997,147.95,147.94,5.71198271]
[1642373973986,3.03229997,147.95,147.92,5.71198271]
[1642373974388,3.03229997,147.95,147.93,3.03]
[1642373976489,3.03229997,147.95,147.92,5.71198271]
[1642373977493,10.37029997,147.95,147.92,5.71198271]
[1642373978095,10.37029997,147.95,147.91,5.71198271]
[1642373978494,10.37029997,147.95,147.91,11.71198271]
[1642373978694,10.37029997,147.95,147.91,5.71198271]
[1642373981196,10.37029997,147.95,147.9,5.71198271]
[1642373981397,3.03229997,147.95,147.9,5.96198271]
[1642373992430,3.03229997,147.95,147.9,5.71198271]
[1642373994837,20.32299997,147.95,147.9,5.71198271]
[1642373995035,20.32299997,147.95,147.88,5.71198271]
[1642373996434,24.17262438,147.95,147.88,5.71198271]
[1642373998136,24.17262438,147.95,147.87,5.71198271]
[1642374001354,24.17262438,147.95,147.83,23.8489]
[1642374001355,17.02562438,147.95,147.84,5.71198271]
[1642374001551,6.88192438,147.95,147.84,5.71198271]
[1642374001750,6.88192438,147.95,147.84,22.59919205]
[1642374002051,3.84972441,147.95,147.84,32.74169205]
[1642374002253,3.84972441,147.95,147.86,68.15]
[1642374002452,3.84972441,147.95,147.86,84.703]
[1642374002651,0.0001,147.95,147.86,85.81020934]
[1642374002852,0.0001,147.95,147.86,17.66020934]
[1642374003051,0.0001,147.95,147.87,10.1402]
[1642374003452,0.0001,147.95,147.88,24.9621]
[1642374003852,0.0001,147.95,147.88,25.2121]
[1642374004451,0.0001,147.95,147.88,35.352]
[1642374004851,0.0001,147.95,147.89,5.71198271]
[1642374005054,0.0001,147.95,147.9,24.2045]
[1642374005453,0.0001,147.95,147.9,24.4545]
[1642374007252,0.0001,147.95,147.91,5.71198271]
[1642374007452,0.0001,147.95,147.92,23.4309]
[1642374007654,0.0001,147.95,147.93,3.03]
[1642374009254,12.98962441,148.01,147.93,3.03]
[1642374010883,12.98962441,148.01,147.94,5.71198271]
[1642374011986,9.14,148.01,147.94,5.71198271]
[1642374012683,12.98962441,148.01,147.94,5.71198271]
[1642374013484,12.98962441,148.01,147.92,23.4309]
[1642374013684,12.98962441,148.01,147.93,5.71198271]
[1642374014086,7.69743982,148.0,147.93,5.71198271]
[1642374014286,10.1408,147.99,147.93,5.71198271]
[1642374015087,7.69743982,148.0,147.93,5.71198271]
[1642374015287,3.84962441,148.0,147.93,5.71198271]
[1642374015489,13.99062441,148.0,147.93,5.71198271]